bitfinex/quotes_SOLUSD_20241031
["timestamp","ask_amount","ask_price","bid_price","bid_amount"]
[1730345262999,70.0,175.38,175.37,10.03354036]
[1730345264311,70.12549,175.38,175.37,15.73574036]
[1730345265207,0.12549,175.38,175.37,15.73574036]
[1730345265402,70.0,175.4,175.37,29.99124036]
[1730345265602,70.0,175.4,175.38,10.03354036]
[1730345265794,70.0,175.42,175.39,10.03354036]
[1730345265999,70.0,175.44,175.41,10.03354036]
[1730345267806,0.12549,175.43,175.42,5.7006]
[1730345268022,5.6987,175.48,175.42,15.73414036]
[1730345268023,0.12549,175.45,175.42,15.73414036]
[1730345268317,0.12549,175.45,175.43,10.03354036]
[1730345269125,0.12549,175.45,175.43,15.73354036]
[1730345269512,70.0,175.44,175.43,15.73354036]
[1730345269807,70.12549,175.44,175.43,15.73354036]
[1730345270219,0.12549,175.44,175.43,15.73354036]
[1730345270522,70.0,175.49,175.43,29.98414036]
[1730345270723,70.0,175.49,175.46,10.03354036]
[1730345271014,70.0,175.49,175.47,10.03354036]
[1730345271223,70.0,175.51,175.48,10.03354036]
[1730345271410,70.0,175.51,175.49,10.03354036]
[1730345271601,70.0,175.51,175.5,10.03354036]
[1730345272606,70.12549,175.51,175.5,10.03354036]
[1730345272821,70.12549,175.51,175.49,10.03354036]
[1730345273018,70.12549,175.51,175.48,10.03354036]
[1730345273209,70.12549,175.51,175.49,5.6983]
[1730345273410,0.12549,175.5,175.49,5.6983]
[1730345274095,70.0,175.49,175.48,14.2462]
[1730345274295,70.12549,175.49,175.48,14.2462]
[1730345275222,70.12549,175.49,175.47,10.03354036]
[1730345276129,70.0,175.47,175.44,30.03354036]
[1730345276424,70.0,175.47,175.45,10.03354036]
[1730345276605,0.12549,175.48,175.46,10.03354036]
[1730345276800,0.12549,175.48,175.47,10.03354036]
[1730345277120,70.0,175.49,175.47,10.03354036]
[1730345277299,70.12549,175.49,175.48,15.73214036]
[1730345277606,0.12549,175.49,175.48,15.73214036]
[1730345277809,70.12549,175.49,175.48,5.6986]
[1730345279414,0.12549,175.49,175.48,10.03354036]
[1730345279818,70.0,175.51,175.48,10.03354036]
[1730345280727,80.03354036,175.51,175.47,14.2471]
[1730345280924,70.0,175.49,175.47,14.2471]
[1730345283029,70.0,175.49,175.47,24.28064036]
[1730345283527,70.0,175.49,175.47,29.97954036]
[1730345283717,0.12549,175.5,175.47,29.97954036]
[1730345288933,70.0,175.49,175.47,14.2471]
[1730345289507,0.12549,175.5,175.47,14.2471]
[1730345290131,0.12549,175.5,175.47,19.946]
[1730345290334,0.12549,175.5,175.47,29.97954036]
[1730345291514,70.0,175.51,175.49,10.03354036]
[1730345291716,70.0,175.53,175.49,10.03354036]
[1730345291917,70.0,175.53,175.5,10.03354036]
[1730345292722,0.12549,175.52,175.5,10.03354036]
[1730345292925,0.12549,175.52,175.51,5.6976]
[1730345295332,0.12549,175.52,175.5,19.9428]
[1730345297837,0.12549,175.52,175.5,29.97634036]
[1730345298029,0.12549,175.52,175.51,10.03354036]
[1730345298431,70.0,175.53,175.51,10.03354036]
[1730345299629,0.12549,175.54,175.52,29.97414036]
[1730345304165,70.12549,175.53,175.52,14.2433]
[1730345306663,70.12549,175.53,175.5,10.03354036]
[1730345308148,70.12549,175.53,175.51,5.6976]
[1730345309847,70.12549,175.53,175.51,19.9418]
[1730345311834,0.12549,175.53,175.51,19.9418]
[1730345312453,70.12549,175.53,175.51,19.9418]
[1730345316565,70.12549,175.53,175.5,20.0]
[1730345317372,0.12549,175.52,175.49,30.03354036]
[1730345318671,0.12549,175.52,175.5,19.943]
[1730345320367,0.12549,175.52,175.5,29.97654036]
[1730345321769,70.0,175.55,175.51,10.03354036]
[1730345321952,70.0,175.55,175.53,10.03354036]
[1730345322151,86.4086,175.57,175.53,10.03354036]
[1730345322467,70.0,175.55,175.52,10.03354036]
[1730345323055,70.0,175.55,175.53,19.9395]
[1730345324281,70.0,175.55,175.51,10.03354036]
[1730345325253,70.0,175.55,175.5,29.97654036]
[1730345325666,0.12549,175.54,175.5,19.943]
[1730345326253,0.12549,175.54,175.5,29.97654036]
[1730345326654,0.12549,175.54,175.5,19.943]
[1730345328274,70.0,175.53,175.5,19.943]
[1730345328579,0.12549,175.54,175.51,20.0]
[1730345328958,70.0,175.53,175.51,20.0]
[1730345330162,70.0,175.53,175.52,5.6973]
[1730345330361,70.12549,175.53,175.52,5.6973]
[1730345331962,70.0,175.49,175.47,10.03354036]
[1730345332162,29.599474,175.53,175.46,14.2475]
[1730345332163,70.0,175.47,175.46,19.9467]
[1730345332364,70.12549,175.47,175.46,14.2475]
[1730345333682,0.12549,175.46,175.44,20.0]
[1730345335900,0.12549,175.46,175.45,25.6996]
[1730345345903,0.12549,175.46,175.43,14.2506]
[1730345346112,70.0,175.45,175.43,19.9508]
[1730345347404,70.0,175.45,175.43,14.2506]
[1730345350595,0.12549,175.44,175.43,14.2506]
[1730345352107,0.12549,175.44,175.41,10.03354036]
[1730345353402,0.12549,175.44,175.42,19.9521]
[1730345354516,0.12549,175.44,175.42,10.03354036]
[1730345356005,0.12549,175.44,175.43,5.7002]
[1730345357110,0.12549,175.44,175.42,19.9517]
[1730345362018,70.0,175.4,175.38,29.98934036]
[1730345362311,0.12549,175.39,175.38,19.9558]
[1730345363312,0.12549,175.39,175.38,14.2542]
[1730345366713,10.15903036,175.39,175.38,14.2542]
[1730345367899,0.12549,175.39,175.38,14.2542]
[1730345370528,70.0,175.4,175.38,14.2542]
[1730345370727,70.0,175.4,175.38,24.28774036]
[1730345371617,70.0,175.4,175.38,14.2542]
[1730345373230,70.0,175.4,175.38,19.9561]
[1730345375027,70.0,175.4,175.38,14.2542]
[1730345382326,70.0,175.4,175.38,19.9561]
[1730345390327,0.12549,175.39,175.38,19.9561]
[1730345391532,0.12549,175.39,175.38,14.2542]
[1730345393236,70.0,175.38,175.36,8.90808686]
[1730345394542,70.0,175.38,175.36,23.16438686]
[1730345395632,0.12549,175.37,175.36,23.16438686]
[1730345400319,70.0,175.38,175.36,33.19792722]
[1730345400529,70.0,175.4,175.37,10.03354036]
[1730345400722,70.0,175.4,175.38,10.03354036]
[1730345401229,70.0,175.4,175.36,61.71062722]
[1730345401743,0.12549,175.39,175.36,61.71062722]
[1730345405448,0.12549,175.39,175.36,51.67708686]
[1730345407452,70.12549,175.37,175.36,23.16438686]
[1730345408153,70.12549,175.37,175.36,33.19792722]
[1730345409431,70.12549,175.37,175.36,23.16438686]
[1730345419845,70.0,175.39,175.36,33.19792722]
[1730345420041,70.0,175.39,175.37,10.03354036]
[1730345420246,70.0,175.39,175.36,33.19792722]
[1730345424149,70.0,175.39,175.36,23.16438686]
[1730345424350,0.12549,175.38,175.36,23.16438686]
[1730345424761,70.0,175.37,175.36,23.16438686]
[1730345424946,70.12549,175.37,175.36,3.20558686]
[1730345425663,103.93591436,175.37,175.36,3.20558686]
[1730345425837,109.63811436,175.37,175.36,3.20558686]
[1730345426037,103.93591436,175.37,175.36,3.20558686]
[1730345428161,109.63811436,175.37,175.36,3.20558686]
[1730345433168,109.73811436,175.37,175.36,3.20558686]
[1730345433585,70.0,175.33,175.32,0.6007928]
[1730345433754,103.93591436,175.33,175.32,0.6007928]
[1730345437271,125.61711436,175.33,175.32,0.6007928]
[1730345440657,125.61711436,175.33,175.32,6.3045928]
[1730345440658,70.0,175.33,175.32,6.3045928]
[1730345440959,70.0,175.35,175.32,30.59773316]
[1730345441281,70.0,175.35,175.33,10.03354036]
[1730345441794,70.0,175.37,175.34,10.03354036]
[1730345441970,70.0,175.37,175.36,10.03354036]
[1730345442175,70.0,175.37,175.36,5.7025]
[1730345444362,70.12549,175.37,175.35,14.2568]
[1730345444678,0.12549,175.36,175.35,14.2568]
[1730345446865,0.12549,175.36,175.35,29.99314036]
[1730345449893,70.0,175.33,175.32,0.6007928]
[1730345450095,103.93591436,175.33,175.32,0.6007928]
[1730345452193,109.63941436,175.33,175.32,0.6007928]
[1730345458488,80.03354036,175.33,175.32,0.6007928]
[1730345459798,103.93591436,175.33,175.32,0.6007928]
[1730345461089,93.902374,175.33,175.32,0.6007928]
[1730345465688,103.93591436,175.33,175.32,0.6007928]
[1730345467199,109.63941436,175.33,175.32,0.6007928]
[1730345481200,70.0,175.33,175.32,0.6007928]
[1730345481396,70.0,175.33,175.32,6.3045928]
[1730345481707,70.0,175.33,175.32,0.6007928]
[1730345482615,70.12549,175.33,175.32,0.6007928]
[1730345483003,123.93591436,175.33,175.32,0.6007928]
[1730345483205,103.93591436,175.33,175.32,0.6007928]
[1730345487428,109.63941436,175.33,175.32,0.6007928]
[1730345490010,169.9735758,175.33,175.32,0.6007928]
[1730345490214,129.63941436,175.33,175.32,0.6007928]
[1730345490510,129.73941436,175.33,175.32,0.6007928]
[1730345491925,129.63941436,175.33,175.32,0.6007928]
[1730345509943,80.03354036,175.33,175.32,0.6007928]
[1730345510146,70.0,175.33,175.32,0.6007928]
[1730345510341,70.0,175.33,175.32,6.3045928]
[1730345510850,70.0,175.33,175.32,0.6007928]
[1730345511945,70.12549,175.33,175.32,0.6007928]
[1730345512632,103.93591436,175.33,175.32,0.6007928]
[1730345515648,109.63941436,175.33,175.32,0.6007928]
[1730345517536,93.902374,175.33,175.32,0.6007928]
[1730345517729,70.0,175.35,175.32,30.59773316]
[1730345518438,70.0,175.35,175.33,10.03354036]
[1730345518662,70.0,175.35,175.32,30.59773316]
[1730345519236,70.0,175.35,175.33,10.03354036]
[1730345519645,70.0,175.35,175.34,5.7032]
[1730345519853,70.12549,175.35,175.34,5.7032]
[1730345520447,70.0,175.37,175.34,15.73674036]
[1730345520642,70.0,175.37,175.36,10.03354036]
[1730345520853,70.0,175.4,175.36,10.03354036]
[1730345521036,70.0,175.4,175.39,10.03354036]
[1730345521441,70.0,175.4,175.38,10.03354036]
[1730345521659,70.0,175.4,175.39,5.7015]
[1730345521842,70.0,175.42,175.39,15.73504036]
[1730345522040,0.12549,175.41,175.39,29.98894036]
[1730345522241,0.12549,175.41,175.39,19.9554]
[1730345522458,70.12549,175.4,175.39,19.9554]
[1730345522839,70.0,175.38,175.36,5.7025]
[1730345523644,70.0,175.38,175.34,10.03354036]
[1730345523948,70.0,175.38,175.36,14.2563]
[1730345525850,0.12549,175.37,175.36,14.2563]
[1730345531042,70.0,175.36,175.33,29.99564036]
[1730345531243,70.0,175.36,175.34,10.03354036]
[1730345531670,70.0,175.36,175.33,29.99564036]
[1730345532046,0.12549,175.35,175.33,19.9621]
[1730345534151,70.12549,175.34,175.33,19.9621]
[1730345535567,0.12549,175.35,175.33,29.99564036]
[1730345535774,0.12549,175.35,175.34,10.03354036]
[1730345536156,0.12549,175.35,175.33,29.99564036]
[1730345536481,0.12549,175.35,175.34,10.03354036]
[1730345536644,70.0,175.38,175.34,10.03354036]
[1730345536846,70.0,175.38,175.34,29.99474036]
[1730345537171,0.12549,175.37,175.34,29.99474036]
[1730345537472,0.12549,175.37,175.35,10.03354036]
[1730345538168,0.12549,175.37,175.35,6.21154036]
[1730345539169,0.12549,175.37,175.36,5.7025]
[1730345540681,70.0,175.38,175.35,29.99344036]
[1730345540885,8.16856801,175.47,175.37,10.03354036]
[1730345540886,0.12549,175.39,175.37,10.03354036]
[1730345541845,70.12549,175.38,175.37,10.03354036]
[1730345542070,0.12549,175.38,175.36,10.03354036]
[1730345542267,0.12549,175.38,175.37,10.03354036]
[1730345542770,0.12549,175.38,175.37,15.73574036]
[1730345543568,70.0,175.42,175.37,29.99124036]
[1730345543865,70.0,175.44,175.41,10.03354036]
[1730345544384,70.0,175.44,175.4,10.03354036]
[1730345545854,70.0,175.44,175.41,19.9532]
[1730345546776,0.12549,175.43,175.41,19.9532]
[1730345547879,0.12549,175.43,175.41,24.28584036]
[1730345549064,0.12549,175.43,175.41,29.98674036]
[1730345550051,0.12549,175.43,175.42,10.03354036]
[1730345550251,0.12549,175.43,175.42,15.73414036]
[1730345551179,0.12549,175.43,175.42,5.7006]
[1730345553455,70.0,175.42,175.41,19.9532]
[1730345553677,70.12549,175.42,175.41,14.2523]
[1730345553880,70.0,175.4,175.38,19.9566]
[1730345554766,0.12549,175.39,175.38,19.9566]
[1730345555561,0.12549,175.39,175.38,14.2547]
[1730345557265,0.12549,175.39,175.37,38.54464036]
[1730345558578,0.12549,175.39,175.37,58.50234036]
[1730345559564,70.0,175.4,175.38,10.03354036]
[1730345560481,70.0,175.4,175.37,58.50234036]
[1730345560683,70.0,175.4,175.37,19.9577]
[1730345560987,0.12549,175.39,175.37,19.9577]
[1730345561187,70.0,175.38,175.37,19.9577]
[1730345561399,70.12549,175.38,175.37,14.2555]
[1730345561684,70.12549,175.38,175.37,19.9577]
[1730345563091,70.12549,175.38,175.37,14.2555]
[1730345563384,0.12549,175.35,175.33,19.9617]
[1730345563587,70.12549,175.34,175.33,19.9617]
[1730345563792,70.12549,175.34,175.33,14.2582]
[1730345564479,70.12549,175.34,175.33,19.9617]
[1730345564685,0.12549,175.33,175.32,6.3045928]
[1730345565692,33.93591436,175.33,175.32,0.6007928]
[1730345566375,23.902374,175.33,175.32,0.6007928]
[1730345569396,80.03354036,175.34,175.32,20.5641928]
[1730345569397,70.0,175.34,175.32,20.5641928]
[1730345570493,33.93591436,175.33,175.32,0.6007928]
[1730345571081,23.902374,175.33,175.32,0.6007928]
[1730345571486,33.93591436,175.33,175.32,0.6007928]
[1730345575394,56.02951436,175.33,175.32,0.6007928]
[1730345575600,61.73301436,175.33,175.32,0.6007928]
[1730345576100,56.02951436,175.33,175.32,0.6007928]
[1730345578003,61.73301436,175.33,175.32,0.6007928]
[1730345580505,56.02951436,175.33,175.32,0.6007928]
[1730345581714,61.73301436,175.33,175.32,0.6007928]
[1730345582904,56.02951436,175.33,175.32,0.6007928]
[1730345585610,61.73301436,175.33,175.32,0.6007928]
[1730345585810,81.73301436,175.33,175.32,0.6007928]
[1730345590822,61.73301436,175.33,175.32,0.6007928]
[1730345591317,81.73301436,175.33,175.32,0.6007928]
[1730345592134,76.02951436,175.33,175.32,0.6007928]
[1730345593419,81.73301436,175.33,175.32,0.6007928]
[1730345594010,23.902374,175.33,175.32,0.6007928]
[1730345595202,70.0,175.34,175.32,6.3044928]
[1730345595402,70.0,175.34,175.32,0.6007928]
[1730345595612,70.0,175.34,175.32,6.3044928]
[1730345596417,0.12549,175.33,175.32,6.3044928]
[1730345596616,70.0,175.34,175.32,30.59763316]
[1730345596821,70.0,175.36,175.33,10.03354036]
[1730345597007,70.0,175.36,175.34,10.03354036]
[1730345597723,70.0,175.36,175.33,10.03354036]
[1730345598603,0.12549,175.35,175.33,10.03354036]
[1730345598805,0.12549,175.35,175.34,19.9612]
[1730345603210,70.0,175.36,175.34,24.29154036]
[1730345603416,70.0,175.38,175.35,10.03354036]
[1730345604532,0.12549,175.37,175.35,10.03354036]
[1730345605452,0.12549,175.37,175.34,14.258]
[1730345605453,70.0,175.35,175.34,29.99454036]
[1730345605615,70.12549,175.35,175.34,19.961]
[1730345607017,70.12549,175.35,175.34,24.29154036]
[1730345607639,0.12549,175.35,175.34,24.29154036]
[1730345608738,0.12549,175.35,175.34,29.99474036]
[1730345609464,70.12549,175.35,175.34,29.99474036]
[1730345610631,70.12549,175.35,175.34,19.9612]
[1730345615656,70.12549,175.35,175.32,0.6007928]
[1730345615657,70.12549,175.33,175.32,16.33813316]
[1730345620527,70.12549,175.33,175.32,0.6007928]
[1730345621655,103.93591436,175.33,175.32,0.6007928]
[1730345621837,93.902374,175.33,175.32,0.6007928]
[1730345627543,70.0,175.33,175.32,16.33813316]
[1730345627861,70.0,175.33,175.32,6.3045928]
[1730345628742,70.12549,175.33,175.32,6.3045928]
[1730345630038,93.902374,175.33,175.32,0.6007928]
[1730345630460,103.93591436,175.33,175.32,0.6007928]
[1730345630763,93.902374,175.33,175.32,0.6007928]
[1730345640468,109.63941436,175.33,175.32,0.6007928]
[1730345645560,93.902374,175.33,175.32,0.6007928]
[1730345647666,93.902374,175.33,175.32,6.3045928]
[1730345647877,93.902374,175.33,175.32,0.6007928]
[1730345649373,103.93591436,175.33,175.32,0.6007928]
[1730345651778,129.63941436,175.33,175.32,0.6007928]
[1730345651976,129.73941436,175.33,175.32,0.6007928]
[1730345652160,129.63941436,175.33,175.32,0.6007928]
[1730345652365,129.73941436,175.33,175.32,0.6007928]
[1730345652755,129.63941436,175.33,175.32,0.6007928]
[1730345652951,129.73941436,175.33,175.32,0.6007928]
[1730345653587,129.63941436,175.33,175.32,0.6007928]
[1730345654077,109.63941436,175.33,175.32,0.6007928]
[1730345654381,129.63941436,175.33,175.32,0.6007928]
[1730345655463,129.73941436,175.33,175.32,0.6007928]
[1730345656067,129.63941436,175.33,175.32,0.6007928]
[1730345658296,129.73941436,175.33,175.32,0.6007928]
[1730345660459,169.9735758,175.33,175.32,0.6007928]
[1730345660689,129.83941436,175.33,175.32,0.6007928]
[1730345663183,129.73941436,175.33,175.32,0.6007928]
[1730345663384,129.83941436,175.33,175.32,0.6007928]
[1730345665571,192.1481758,175.33,175.32,0.6007928]
[1730345666667,152.01401436,175.33,175.32,0.6007928]
[1730345667167,152.01401436,175.33,175.23,24.29974036]
[1730345667168,70.0,175.24,175.23,24.29974036]
[1730345667384,93.902374,175.24,175.23,19.9729]
[1730345668282,93.902374,175.24,175.23,14.2662]
[1730345669274,93.902374,175.24,175.22,10.03354036]
[1730345669471,0.12549,175.23,175.22,10.03354036]
[1730345671283,0.12549,175.23,175.22,15.74064036]
[1730345673397,70.0,175.22,175.21,10.03354036]
[1730345673688,70.12549,175.22,175.21,10.03354036]
[1730345674890,70.12549,175.22,175.21,15.74094036]
[1730345675595,70.12549,175.22,175.21,5.7074]
[1730345676683,70.0,175.2,175.19,44.28104036]
[1730345677004,70.12549,175.2,175.19,44.28104036]
[1730345677980,70.12549,175.2,175.19,15.74154036]
[1730345680572,93.902374,175.2,175.19,5.708]
[1730345683192,93.902374,175.2,175.19,9.78698684]
[1730345683767,93.902374,175.2,175.19,19.8205272]
[1730345685095,93.902374,175.2,175.19,9.78698684]
[1730345685285,93.902374,175.2,175.19,5.708]
[1730345685490,0.12549,175.19,175.18,28.3831272]
[1730345685679,0.12549,175.19,175.18,34.0911272]
[1730345685881,0.12549,175.19,175.18,24.05758684]
[1730345687396,93.776884,175.2,175.15,28.5457]
[1730345687397,70.12549,175.16,175.15,39.8218272]
[1730345688194,70.12549,175.16,175.15,35.74284036]
[1730345695392,70.12549,175.16,175.15,25.7093]
[1730345695598,70.12549,175.16,175.15,35.74284036]
[1730345695799,70.0,175.19,175.16,20.0]
[1730345695987,70.0,175.21,175.18,10.03354036]
[1730345696304,70.0,175.21,175.2,10.03354036]
[1730345696507,70.0,175.22,175.2,10.03354036]
[1730345697109,70.0,175.2,175.17,10.03354036]
[1730345697299,70.0,175.2,175.18,10.03354036]
[1730345697487,70.0,175.2,175.19,10.03354036]
[1730345697688,70.0,175.2,175.18,14.2707]
[1730345698213,0.12549,175.19,175.18,14.2707]
[1730345698709,0.12549,175.19,175.18,24.30424036]
[1730345700210,0.12549,175.19,175.18,30.01264036]
[1730345700513,0.12549,175.19,175.18,19.9791]
[1730345700898,0.12549,175.19,175.18,30.01264036]
[1730345705521,70.0,175.2,175.18,30.01264036]
[1730345705815,70.0,175.2,175.19,10.03354036]
[1730345706709,70.12549,175.2,175.19,15.74154036]
[1730345709096,70.12549,175.2,175.19,5.708]
[1730345710215,70.12549,175.2,175.18,14.2707]
[1730345710216,0.12549,175.19,175.18,19.9791]
[1730345710411,23.902374,175.19,175.18,14.2707]
[1730345710919,0.12549,175.19,175.18,19.9791]
[1730345715427,70.0,175.18,175.17,9.78351249]
[1730345715610,70.12549,175.18,175.16,9.78381249]
[1730345715818,70.0,175.16,175.15,24.05971831]
[1730345716203,70.12549,175.16,175.15,44.05971831]
[1730345716822,70.12549,175.16,175.15,39.9824]
[1730345719319,70.12549,175.16,175.15,44.05971831]
[1730345722809,23.776884,175.15,175.14,0.6007928]
[1730345723007,33.93591436,175.15,175.14,0.6007928]
[1730345724226,39.64521436,175.15,175.14,0.6007928]
[1730345725411,59.64521436,175.15,175.14,0.6007928]
[1730345726922,59.74521436,175.15,175.14,0.6007928]
[1730345727124,99.8793758,175.15,175.14,0.6007928]
[1730345727640,59.74521436,175.15,175.14,0.6007928]
[1730345728032,129.74521436,175.15,175.14,0.6007928]
[1730345728712,103.93591436,175.15,175.14,0.6007928]
[1730345728912,109.64521436,175.15,175.14,0.6007928]
[1730345729108,129.64521436,175.15,175.14,0.6007928]
[1730345729566,169.8793758,175.15,175.14,0.6007928]
[1730345730438,129.74521436,175.15,175.14,0.6007928]
[1730345730747,169.8793758,175.15,175.14,0.6007928]
[1730345732027,129.64521436,175.15,175.14,0.6007928]
[1730345733445,100.03354036,175.15,175.14,0.6007928]
[1730345733939,105.74284036,175.15,175.14,0.6007928]
[1730345734639,129.64521436,175.15,175.14,0.6007928]
[1730345739649,169.7793758,175.15,175.14,0.6007928]
[1730345740236,169.8793758,175.15,175.14,0.6007928]
[1730345742547,129.74521436,175.15,175.14,0.6007928]
[1730345745543,169.8793758,175.15,175.14,0.6007928]
[1730345748464,129.74521436,175.15,175.14,0.6007928]
[1730345750455,169.9793758,175.15,175.14,0.6007928]
[1730345755545,169.9793758,175.15,175.05,10.03354036]
[1730345755546,70.12549,175.05,175.04,24.06550391]
[1730345755862,70.12549,175.05,175.04,19.9949]
[1730345756155,80.15903036,175.05,175.04,19.9949]
[1730345756359,70.12549,175.05,175.04,19.9949]
[1730345756537,70.12549,175.05,175.04,14.282]
[1730345758539,70.12549,175.05,175.04,19.9949]
[1730345762739,70.12549,175.05,175.04,14.282]
[1730345765464,70.0,175.03,175.02,5.7136]
[1730345765670,70.12549,175.03,175.02,5.7136]
[1730345766672,70.12549,175.03,175.02,10.03354036]
[1730345768157,70.12549,175.03,175.02,15.74714036]
[1730345769376,70.12549,175.03,175.01,24.31804036]
[1730345769593,70.0,175.03,175.01,24.31804036]
[1730345769750,0.12549,175.02,175.01,24.31804036]
[1730345770455,23.902374,175.02,175.01,14.2845]
[1730345770666,23.902374,175.02,175.01,19.9984]
[1730345770869,0.12549,175.02,175.01,30.03194036]
[1730345773476,70.0,175.01,175.0,10.03354036]
[1730345773961,70.12549,175.01,175.0,10.03354036]
[1730345774557,70.12549,175.01,175.0,15.74774036]
[1730345776868,70.12549,175.01,175.0,5.7142]
[1730345777267,70.12549,175.01,175.0,15.74774036]
[1730345780875,0.12549,175.01,175.0,15.74774036]
[1730345781683,70.12549,175.01,175.0,15.74774036]
[1730345782584,70.12549,175.01,175.0,5.7142]
[1730345783385,70.12549,175.01,175.0,15.74774036]
[1730345785282,70.0,175.03,175.0,30.03344036]
[1730345785481,70.0,175.05,175.02,10.03354036]
[1730345785791,70.0,175.09,175.05,20.0]
[1730345785996,70.0,175.09,175.08,10.03354036]
[1730345786284,70.0,175.09,175.08,5.7116]
[1730345786862,0.12549,175.08,175.07,14.2796]
[1730345787069,23.902374,175.08,175.07,14.2796]
[1730345787394,70.0,175.09,175.07,30.02514036]
[1730345787966,70.0,175.09,175.07,19.9916]
[1730345788672,0.12549,175.08,175.07,19.9916]
[1730345790169,0.12549,175.08,175.07,10.03354036]
[1730345790696,70.12549,175.07,175.06,10.03354036]
[1730345791695,70.12549,175.07,175.06,15.74584036]
[1730345792197,0.12549,175.07,175.06,15.74584036]
[1730345792367,70.0,175.09,175.06,15.74584036]
[1730345792569,70.12549,175.09,175.08,10.03354036]
[1730345792778,70.0,175.11,175.08,10.03354036]
[1730345792992,70.0,175.11,175.1,10.03354036]
[1730345793196,70.0,175.13,175.1,10.03354036]
[1730345793492,70.0,175.13,175.12,10.03354036]
[1730345793882,70.0,175.13,175.12,15.74384036]
[1730345794788,70.12549,175.13,175.12,15.74384036]
[1730345795386,70.0,175.15,175.12,15.74384036]
[1730345795589,70.0,175.13,175.12,19.9862]
[1730345796798,70.12549,175.13,175.12,19.9862]
[1730345798779,70.12549,175.13,175.12,30.01974036]
[1730345798984,70.12549,175.13,175.12,14.2759]
[1730345799199,70.0,175.13,175.11,5.7106]
[1730345799499,0.12549,175.12,175.11,5.7106]
[1730345799699,70.0,175.1,175.09,19.9895]
[1730345799902,70.12549,175.1,175.09,19.9895]
[1730345800482,70.0,175.1,175.08,5.7116]
[1730345800685,70.0,175.09,175.06,19.9931]
[1730345801006,0.12549,175.1,175.06,48.5547]
[1730345801594,70.0,175.13,175.06,48.5547]
[1730345801782,70.0,175.11,175.09,10.03354036]
[1730345801982,0.12549,175.1,175.09,10.03354036]
[1730345802301,0.12549,175.08,175.06,58.58824036]
[1730345803199,70.0,175.07,175.06,58.58824036]
[1730345803496,70.12549,175.07,175.06,58.58824036]
[1730345805599,70.12549,175.07,175.06,30.02664036]
[1730345806603,70.12549,175.07,175.06,19.9931]
[1730345808596,70.0,175.09,175.07,20.0]
[1730345808906,70.0,175.09,175.08,10.03354036]
[1730345809784,70.12549,175.09,175.08,15.74514036]
[1730345815312,70.0,175.11,175.08,15.74514036]
[1730345815478,70.12549,175.11,175.1,10.03354036]
[1730345817001,70.12549,175.11,175.1,15.74454036]
[1730345820114,70.12549,175.05,175.04,5.7129]
[1730345820607,27.9299,175.11,175.03,10.03354036]
[1730345820608,70.0,175.04,175.03,10.03354036]
[1730345820797,70.12549,175.04,175.03,10.03354036]
[1730345821292,0.12549,175.05,175.03,10.03354036]
[1730345821606,0.12549,175.05,175.04,10.03354036]
[1730345821993,0.12549,175.05,175.04,15.74644036]
[1730345822490,0.12549,175.05,175.04,5.7129]
[1730345823220,0.12549,175.05,175.02,10.03354036]
[1730345823908,0.12549,175.05,175.01,30.03224036]
[1730345825398,70.0,175.02,175.01,30.03224036]
[1730345825598,70.12549,175.02,175.01,39.9987]
[1730345829022,70.0,175.04,175.01,39.9987]
[1730345829201,70.12549,175.04,175.03,10.03354036]
[1730345829406,70.0,175.04,175.03,10.03354036]
[1730345830310,70.0,175.07,175.04,20.0]
[1730345830514,70.0,175.07,175.05,10.03354036]
[1730345830817,70.0,175.11,175.06,10.03354036]
[1730345831002,70.0,175.11,175.09,10.03354036]
[1730345831623,70.0,175.11,175.1,10.03354036]
[1730345831999,70.0,175.13,175.1,10.03354036]
[1730345832227,70.0,175.13,175.11,10.03354036]
[1730345832529,70.0,175.13,175.12,5.7103]
[1730345832828,70.0,175.13,175.12,15.74384036]